Cogmind - Beta 13 @@@ ROGUE MODE // 2024.04.05 @ 19:38:37 Player: mehbruh Result: Destroyed by D-53 Grenadier with Mini Grenade Launcher Performance ------------- Evolutions (0) 0 Regions Visited (2) 400 Robots Destroyed (30) 150 Value Destroyed (505) 505 Prototype IDs (0) 0 Alien Tech Used (0) 0 Bonus (0) 0 TOTAL SCORE: 1055 Bonus ------- None Cogmind --------- Core Integrity 0/250 Matter 60/300 Energy 250/250 System Corruption 1% Temperature Cool (0) Movement Treading (240) Ox1 Location -10/Mines Parts ------- > --- POWER (1) -------- Ion Engine > --- PROPULSION (2) --- Light Treads Light Treads > --- UTILITY (2) ------ Improved Heat Sink High-capacity Storage Unit > --- WEAPON (2) ------- Light Cannon Light Cannon > --- INVENTORY (20) --- Ion Engine Light Treads Light Treads Wheel Wheel Huge Storage Unit Structural Scanner Visual Processing Unit Sensor Array Hacking Suite Hacking Suite Hacking Suite Assault Rifle Assault Rifle Grenade Launcher Hammer Peak State ------------ > --- POWER ------------ Ion Engine > --- PROPULSION ------- Light Treads Light Treads > --- UTILITY ---------- Improved Heat Sink High-capacity Storage Unit > --- WEAPON ----------- Assault Rifle Light Cannon > --- INVENTORY -------- Ion Engine Light Treads Light Treads Wheel Wheel Huge Storage Unit Structural Scanner Visual Processing Unit Sensor Array Hacking Suite Hacking Suite Hacking Suite Assault Rifle Light Cannon Grenade Launcher Hammer [Rating: 11] Favorites ----------- Power Ion Engine Engine Ion Engine Propulsion Light Treads Treads Light Treads Utility Light Armor Plating Device Improved Heat Sink Storage High-capacity Storage Unit Protection Light Armor Plating Weapon Assault Rifle Energy Gun Medium Laser Ballistic Gun Assault Rifle Ballistic Cannon Light Cannon Launcher Grenade Launcher Build | -11 -10 -10 ------- Run | Yrd Mat Min Slots Evolved . | . . . Power . | . . . Propulsion . | . . . Utility . | . . . Weapon . | . . . Parts Attached 28 | 6 14 8 Power 1 | 1 . . Engine 1 | 1 . . Core . | . . . Reactor . | . . . Propulsion 5 | 2 2 1 Treads 5 | 2 2 1 Leg . | . . . Wheel . | . . . Hover . | . . . Flight . | . . . Utility 9 | 1 7 1 Device 3 | . 2 1 Storage 4 | 1 3 . Processor . | . . . Hackware . | . . . Protection 2 | . 2 . Artifact . | . . . Weapon 13 | 2 5 6 Energy Gun 2 | 1 1 . Energy Cannon . | . . . Ballistic Gun 5 | 1 3 1 Ballistic Cannon 4 | . 1 3 Launcher 2 | . . 2 Special Weapon . | . . . Impact Weapon . | . . . Slashing Weapon . | . . . Piercing Weapon . | . . . Special Melee Weapon . | . . . Unidentified Prototypes . | . . . Parts Lost 2 | . . 2 Power . | . . . Propulsion . | . . . Utility 1 | . . 1 Weapon 1 | . . 1 Highest Loss Streak 2 | . . 2 To Critical Strikes . | . . . Average Slot Usage (%) 97 | . 97 90 Engine 14 | . 14 14 Treads 27 | . 28 27 Device 2 | . 2 4 Storage 14 | . 14 14 Protection 8 | . 9 3 Energy Gun 5 | . 5 . Ballistic Gun 20 | . 21 6 Ballistic Cannon 1 | . . 18 Naked Turns . | . . . Heaviest Build 92 | 14 92 52 Greatest Support 40 | 40 40 40 Greatest Overweight (x) 2 | . 2 1 Average Overweight (x) . | . 1 1 Largest Inventory Capacity 25 | 8 25 20 Average Capacity 19 | 7 20 20 Most Carried 18 | 5 18 18 Average Carried 11 | 3 11 16 Final Capacity 20 | 8 20 20 Final Carried 18 | 4 18 16 Class Distribution -------------------- 100% | Mutant Dominant Class ---------------- Mutant | -10/Materials Mutant | -10/Mines Resources | -11 -10 -10 ----------- Run | Yrd Mat Min Matter Collected 695 | 209 457 29 Remotely . | . . . Salvage Created 854 | . 816 38 Parts 54 | 3 50 1 Haulers Intercepted 2 | . 2 . Recyclers Shooed 6 | . 6 . Parts Field Recycled . | . . . Retrieved Matter . | . . . Parts Self-Destructed . | . . . Prevented . | . . . Kills | -11 -10 -10 ------- Run | Yrd Mat Min Combat Hostiles Destroyed 30 | . 15 15 Guns 15 | . 15 . Cannons 2 | . . 2 AOE 13 | . . 13 Classes Destroyed 10 | 1 8 1 Worker 3 | . 2 1 Builder 2 | . 2 . Tunneler 1 | 1 . . Hauler 2 | . 2 . Recycler 1 | . 1 . Operator 3 | . 3 . Watcher 3 | . 3 . Swarmer 6 | . 6 . Grunt 9 | . 9 . Assembled 15 | . . 15 Best Kill Streak 14 | 1 8 14 Combat Bots Only 13 | . 5 13 Max Kills in Single Turn 5 | 1 1 5 Gunslinging . | . . . Exploded 4 | . . 4 Melee . | . . . Uniques/NPCs Destroyed . | . . . Combat | -11 -10 -10 -------- Run | Yrd Mat Min Hostile Shots Fired 112 | . 82 30 Missed 30 | . 21 9 Damage Taken 1147 | . 619 528 Core 281 | . 122 159 Absorbed by Shields . | . . . Regen/Repaired (Parts) 123 | . 123 . Core Remaining (%) 100 | 100 . . Volleys Fired 89 | . 70 19 Largest 2 | . 2 2 Hottest 70 | . 70 70 Shots Fired 179 | . 141 38 Gun 142 | . 141 1 Cannon 29 | . . 29 Launcher 8 | . . 8 Special . | . . . Kinetic 124 | . 94 30 Thermal 47 | . 47 . Explosive 8 | . . 8 Electromagnetic . | . . . Robot Hit Streak 8 | . 8 4 Robot Miss Streak 5 | . 3 5 Penetration Max . | . . . Secondary Targets 3 | . 3 . Max Gunslinging Chain 1 | . 1 . Shots Hit Robots 96 | . 85 11 Core Hits 78 | . 41 37 Critical Kills . | . . . Critical Parts Destroyed . | . . . Critical Strikes 5 | . 5 . Burn 5 | . 5 . Melee Attacks . | . . . Impact . | . . . Slashing . | . . . Piercing . | . . . Sneak Attacks . | . . . Combat Hostiles . | . . . Follow-up Attacks . | . . . Damage Inflicted 2187 | 9 1153 1025 Guns 1100 | . 1100 . Cannons 167 | . . 167 Explosions 856 | . . 856 Melee . | . . . Ramming 64 | 9 53 2 Kinetic 855 | . 688 167 Thermal 412 | . 412 . Explosive 856 | . . 856 Electromagnetic . | . . . Impact . | . . . Slashing . | . . . Piercing . | . . . Highest Corruption 1 | . 1 1 Average Corruption 1 | . 1 1 Corruption Purged . | . . . Corruption Blocked . | . . . Effects 8 | . 8 . Message Errors 3 | . 3 . Matter Fused 2 | . 2 . Data Loss (minor) 2 | . 2 . Misfires 1 | . 1 . Overload Shots . | . . . Overflow Damage 2 | . . 2 Projectiles 2 | . . 2 Explosions . | . . . Melee . | . . . Knockbacks 2 | . . 2 Impact . | . . . Kinetic 2 | . . 2 Secondary . | . . . Self-Inflicted Damage 79 | . . 79 Shots 4 | . . 4 Rammed 12 | 2 9 1 Targets Rammed 14 | 3 10 1 Kicked . | . . . Crushed 2 | 1 1 . Highest Temperature 209 | . 171 209 Average Temperature 70 | . 52 118 Received Heat Transfer 303 | . 243 60 Siege Activations . | . . . Robots Corrupted . | . . . Combat Hostiles . | . . . Parts Fried . | . . . Impact Corruptions . | . . . Robots Melted . | . . . Combat Hostiles . | . . . Parts Melted 3 | . 3 . Heat Transferred 1591 | . 1591 . Parts Sabotaged . | . . . Parts Stolen . | . . . Parts Stripped . | . . . Power Chain Reactions . | . . . Alert | -11 -10 -10 ------- Run | Yrd Mat Min Peak Influence 199 | 5 199 35 Initial 3 | . 3 . Average 63 | 2 70 16 Maximum Alert Level . | . . . Low Security (%) 100 | 100 100 100 Level 1 . | . . . Level 2 . | . . . Level 3 . | . . . Level 4 . | . . . Level 5 . | . . . High Security . | . . . Max Security . | . . . Squads Dispatched 4 | . 4 . Investigation 1 | . 1 . Extermination . | . . . Reinforcement 3 | . 3 . Assault . | . . . Garrison . | . . . Intercept . | . . . Searches Triggered . | . . . Construction Impeded . | . . . Haulers Reinforced . | . . . Active Scanning Responses . | . . . Cargo Convoy Interrupts . | . . . Stealth | -11 -10 -10 --------- Run | Yrd Mat Min Distress Signals 3 | . 3 . Communications Jammed . | . . . Distress Signals . | . . . Times Spotted 41 | . 24 17 Peak Tracking Total 12 | . 5 12 Tactical Retreats 1 | . . 1 Traps | -11 -10 -10 ------- Run | Yrd Mat Min Traps Triggered . | . . . Indirectly . | . . . Trap Hack Attempts . | . . . Triggered . | . . . Disarmed . | . . . Reprogrammed . | . . . Reused . | . . . Traps Extracted . | . . . Installed . | . . . Triggered . | . . . Machines | -11 -10 -10 ---------- Run | Yrd Mat Min Machines Disabled . | . . . Max in Single Turn . | . . . Machines Repaired . | . . . Machines Dismantled . | . . . Machines Sabotaged . | . . . Overloaded Fab Kills . | . . . Hacking | -11 -10 -10 --------- Run | Yrd Mat Min Machines Accessed 7 | . 7 . Terminals 5 | . 5 . Fabricators . | . . . Repair Stations 1 | . 1 . Recycling Units 1 | . 1 . Scanalyzers . | . . . Garrison Access . | . . . Total Hacks 15 | . 15 . Successful 6 | . 6 . Failed 9 | . 9 . Catastrophic 5 | . 5 . Database Lockouts . | . . . Manual 5 | . 5 . Terminals 10 | . 10 . Fabricators . | . . . Repair Stations 3 | . 3 . Recycling Units 2 | . 2 . Scanalyzers . | . . . Garrison Access . | . . . Terminal Hacks 2 | . 2 . Emergency Access Points 1 | . 1 . Locate Traps 1 | . 1 . Fabricator Hacks . | . . . Repair Station Hacks 2 | . 2 . Scan Component 1 | . 1 . Repair 1 | . 1 . Recycling Unit Hacks 2 | . 2 . Retrieve Components 2 | . 2 . Scanalyzer . | . . . Garrison Access Hacks . | . . . Unauthorized Hacks . | . . . Terminals . | . . . Fabricators . | . . . Repair Stations . | . . . Recycling Units . | . . . Scanalyzers . | . . . Garrison Access . | . . . Data Cores Recovered . | . . . Used . | . . . Hacking Detections 6 | . 6 . Full Trace Events 1 | . 1 . Feedback Events 1 | . 1 . Corruption 1 | . 1 . Feedback Blocked . | . . . Robot Schematics Acquired . | . . . Robots Built . | . . . Authchips . | . . . Time . | . . . Total Robot Build Rating . | . . . Part Schematics Acquired . | . . . Parts Built . | . . . Authchips . | . . . Time . | . . . Total Part Build Rating . | . . . Parts Repaired 1 | . 1 . Time 26 | . 26 . Parts Recycled . | . . . Recycled Matter . | . . . Retrieved Matter . | . . . Retrieved Components 9 | . 9 . Parts Scanalyzed . | . . . Part Schematics Acquired . | . . . Parts Damaged . | . . . Bothacking | -11 -10 -10 ------------ Run | Yrd Mat Min Used RIF Installer . | . . . Robots Hacked . | . . . Non-combat . | . . . Combat . | . . . Robot Hacks Applied . | . . . Relay Couplers Released . | . . . Fabnet Peak Effective % . | . . . Robots Rewired . | . . . Allies Hacked . | . . . Hacks Repelled . | . . . Allies | -11 -10 -10 -------- Run | Yrd Mat Min Total Allies . | . . . Largest Group . | . . . Highest-Rated Group . | . . . Highest-Rated Ally . | . . . Total Orders . | . . . Ally Attacks . | . . . Total Damage . | . . . Kills . | . . . Allies Corrupted . | . . . Allies Melted . | . . . Intel | -11 -10 -10 ------- Run | Yrd Mat Min Robot Analysis Total . | . . . Derelict Logs Recovered . | . . . Drone Launches . | . . . Drone Recoveries . | . . . Exploration | -11 -10 -10 ------------- Run | Yrd Mat Min Turns Passed 2332 | 136 2055 141 Spaces Moved 789 | 78 685 26 Core 8 | 8 . . Treads 781 | 70 685 26 Legs . | . . . Wheels . | . . . Hover . | . . . Flight . | . . . Fastest Speed 50 | 50 160 240 Average Speed 238 | 148 248 240 Slowest Speed 320 | 160 320 240 Overloaded Moves . | . . . Propulsion Burnouts . | . . . Robots Hopped . | . . . Cave-ins Triggered . | . . . Exploration Rate (%) 36 | 7 96 7 Regions Visited 2 Branch Regions 1 Pre-discovered Areas . | . . . Known Exits Taken . | . . . Unknown Exits Taken 2 | 1 1 . Scrap Searched . | . . . Spaces Dug . | . . . Terrain Destroyed 52 | . . 52 Melee . | . . . Projectile 1 | . . 1 AOE 51 | . . 51 Terrain Rammed . | . . . Walls Destroyed . | . . . Machines Disabled . | . . . Actions | -11 -10 -10 --------- Run | Yrd Mat Min Total 1037 | 96 878 63 Wait 84 | . 76 8 Move 787 | 77 684 26 Hop . | . . . Pick Up 31 | 10 20 1 Fast Attach . | . . . Attach 10 | 6 1 3 Detach . | . . . Swap 18 | . 13 5 Drop 4 | . 4 . Fire 89 | . 70 19 Melee . | . . . Ram . | . . . Kick . | . . . Crush 14 | 3 10 1 Escape Stasis . | . . . Rewire . | . . . Trap . | . . . Miscellaneous . | . . . Route ------- -11/Scrapyard -10/Materials (discovered 3 exits: [*Mat x2] / [*Min]) -10/Mines History --------- Turn | Location | Event 8 | -11/Scrapyard | Discovered new exit (range 15) 137 | -11/Scrapyard | Entered Materials 280 | -10/Materials | Discovered new exit (range 6) 317 | -10/Materials | Build established: Mutant 1056 | -10/Materials | Discovered new exit (range 13) 1258 | -10/Materials | Repaired Lgt. Treads? 1841 | -10/Materials | Discovered new exit (range 13) 2192 | -10/Materials | Entered Mines 2193 | -10/Mines | Assembled infested the area 2204 | -10/Mines | Core integrity fell below 50% 2228 | -10/Mines | Destroyed 13 combat bots 2240 | -10/Mines | Core integrity fell below 20% 2333 | -10/Mines | Destroyed by D-53 Grenadier with Mini Grenade Launcher Last Messages --------------- Grenade Launcher destroyed. The unstable cave ceiling collapses. as-30677 knocked back. Destroyed Asb. Hover Unit. The unstable cave ceiling collapses. Lgt. Armor Plating destroyed. as-65655 knocked back. Lgt. Treads severed. The unstable cave ceiling collapses. 10 Matter crushed. as-65655 destroyed. Acquired Lgt. Treads. as-30677 destroyed. [Achievement: Exterminator] Acquired 1 matter. Acquired 3 matter. Acquired 17 matter. Acquired 1 matter. Acquired 3 matter. The unstable cave ceiling collapses. Map ----- +----------------------------------------------------+ | ?????????????????????????????????? | | ?????????????????????????????????? | | ?????????????????????????????????? | | ?????????????????????????????????? | | ?????????????????????????????????? | | ?????????????????????????????????? | | ?????????????????????????????????? | | ?????????????????????????????????? | | ?????????????????????????????????? | | ?????????????????????????????????? | | ?????????????????????????????????? | | ?????????????????????????????????? | | ?????????????????????????????????? | | ?????????????????????????????????? | | ?????????????????????????????????? | | ?????????????????????????????????? | | ?????????????????????????????????? | | ??#??????????????????????????????? | | ??# ?????????????????????????????? | | ??# ????????????????????????????? | | ??? ?????????#?????????????????? | | ???? ###?###? #?????????????????? | | ?????# # #% #?????????????????? | | ??#### ##????????????????? | | ??# d #????????????????? | | ?## @ d #?????????????????? | | ?# % ##?????????????????? | | ?# # #??????????????????? | | ?## < ##??????????????????? | | ?# # ###???????????????????? | | ## # ####?????????????????????? | | # # #????????????????????????? | | # #????????????????????????? | | #????????????????????????? | | #????????????????????????? | | # #????????????????????????? | | # #????????????????????????? | | # ! #????????????????????????? | | ## """ #????????????????????????? | | ?# """ #????????????????????????? | | ?# """ #????????????????????????? | | ?# #????????????????????????? | | ?# #????????????????????????? | | ?########????????????????????????? | | ?????????????????????????????????? | | ?????????????????????????????????? | | | | | | | | | +----------------------------------------------------+ Best States ------------- Heat Dissipation 39 Energy Generation 10 Energy Capacity 250 Matter Stores 300 Matter Capacity 300 Sight Range 16 Terrain Scan Density 10 Armor Coverage 150 Evasion (%) 50 Recoil Reduction 2 Item Schematics ----------------- None Robot Schematics ------------------ None Fabricated ------------ Nothing Alien Tech Used ----------------- None Achievements -------------- Exterminator Challenges ------------ None Game ------ Seed InsulationEnhancedSaw Manual? 0 Play Time 00:15:41 Cumulative 19.8 hours Start 2024.04.05 @ 19:24:48 End 2024.04.05 @ 19:38:37 Sessions 1 Manual Loads 0 Difficulty Rogue Special Mode None Game No. 11 Rogue 11 Adventurer 0 Explorer 0 Win Type - Total 1 Types 1/0/0/0/0/0/0/0/0 Lore% 19 Gallery% 21 Achievement% 23 Wizard Run 0 Options --------- Layout 1 ASCII 0 Keyboard 0 Movement Arrows Keybinds 0 Fullscreen 1 Font 24/Smallcaps Map View 50x35 Zoom Use 0% Tactical HUD 0 Map Filters NONE Filters NONE Steam 1 RUN: 593c8381-dee6-4492-894e-5977482b7cce